Cogmind - Beta 13 @@@ ROGUE MODE // 2024.05.20 @ 23:26:15 Player: Ape Result: Destroyed by P-70 Sage with Tesla Rifle Performance ------------- Evolutions (6) 3000 Regions Visited (14) 2800 Robots Destroyed (288) 1440 Value Destroyed (12939) 12939 Prototype IDs (24) 480 Alien Tech Used (0) 0 Bonus (3033) 3033 TOTAL SCORE: 23692 Bonus ------- High Alert Combat Kills 1550 Follower Combat Kills 1124 Entered Garrisons 200 Used RIF Installer 500 Friendly Fire -341 Cogmind --------- Core Integrity 0/1150 Matter 295/300 Energy 99/100 System Corruption 30% Temperature Cool (0) Movement Core (50) Location -4/Factory Parts ------- > --- POWER (2) -------- (None) > --- PROPULSION (4) --- (None) > --- UTILITY (9) ------ Relay Coupler [NC] (20) Relay Coupler [NC] (22) Relay Coupler [Specialist] (18) Relay Coupler [Hunter] (17) > --- WEAPON (4) ------- (None) > --- INVENTORY (5) ---- Medium Treads Huge Storage Unit Energy Well (350) Structural Scanner Advanced Remote Datajack Peak State ------------ > --- POWER ------------ Light Antimatter Reactor Particle Reactor > --- PROPULSION ------- Medium Treads Medium Treads Improved Medium Treads Armored Medium Treads > --- UTILITY ---------- Scrap Engine Advanced Cryofiber Web Advanced Heat Sink Advanced Heat Sink Advanced Cooling System Huge Storage Unit Energy Well Improved Medium Armor Plating > --- WEAPON ----------- KE Penetrator Railgun Hpw. EM Construct/G Cycling Thermal Wave Construct/C > --- INVENTORY -------- Enhanced Nuclear Core Improved Treads Medium Treads Medium Treads Medium Treads Advanced Heat Sink Improved Cooling System Huge Storage Unit Energy Well High-capacity Matter Pod Improved Reaction Control System Hacking Suite Relay Coupler [NC] Relay Coupler [NC] Relay Coupler [NC] Relay Coupler [Grunt] Relay Coupler [Sentry] Relay Coupler [Sentry] Relay Coupler [Hunter] Heavy Shock Bomb Launcher Precision Grenade Launcher Advanced Datajack Advanced Remote Datajack Scythe [Rating: 119] Favorites ----------- Power Particle Reactor Engine Deuterium Engine Power Core Light Nuclear Core Reactor Particle Reactor Propulsion Medium Treads Treads Medium Treads Leg Flexi-carbon Leg Wheel Armored Huge Wheel Hover Unit Constructs Flight Unit Improved Surge Thruster Utility Huge Storage Unit Device Improved Cooling System Storage Huge Storage Unit Processor Advanced Visual Processing Unit Hackware Hacking Suite Protection Improved Medium Armor Plating Weapon Cooled Particle Cannon Energy Gun Precision Beam Rifle Energy Cannon Cooled Particle Cannon Ballistic Gun Minigun Ballistic Cannon Constructs Launcher Heavy Shock Bomb Launcher Special Weapon Mining Laser Slashing Weapon Scythe Special Melee Weapon Advanced Datajack Build | -11 -10 -10 -10 -8 -7 -7 -7 -7 -5 -5 -5 -5 -5 -4 ------- Run | Yrd Mat Min Sub Mat Fac Sto Gar Rec Fac Ext Cet Arc Hub Fac Slots Evolved 12 | . . . . 4 2 . . . 4 . . . . 2 Power 1 | . . . . . . . . . . . . . . 1 Propulsion 2 | . . . . 1 . . . . 1 . . . . . Utility 7 | . . . . 3 2 . . . 2 . . . . . Weapon 2 | . . . . . . . . . 1 . . . . 1 Parts Attached 319 | 6 6 4 24 47 20 25 20 2 29 59 8 11 8 50 Power 34 | 1 3 1 5 5 1 2 3 . 2 4 . 1 1 5 Engine 16 | 1 1 1 5 2 1 2 2 . . . . . . 1 Core 9 | . 2 . . 3 . . . . 1 1 . . . 2 Reactor 9 | . . . . . . . 1 . 1 3 . 1 1 2 Propulsion 67 | 2 . 1 2 9 6 10 3 . 8 12 1 4 1 8 Treads 63 | 2 . 1 2 9 6 10 3 . 5 12 1 4 1 7 Leg 1 | . . . . . . . . . 1 . . . . . Wheel 1 | . . . . . . . . . . . . . . 1 Hover . | . . . . . . . . . . . . . . . Flight 2 | . . . . . . . . . 2 . . . . . Utility 136 | 1 2 1 3 17 9 5 8 2 13 37 6 4 6 22 Device 35 | . . . . 8 1 1 3 . 3 6 . 2 2 9 Storage 10 | 1 1 1 . 1 1 . . . 1 2 1 . . 1 Processor 3 | . . . . . 1 . . . . 1 . . . 1 Hackware 11 | . 1 . . 1 1 . 1 . . . . . . 7 Protection 77 | . . . 3 7 5 4 4 2 9 28 5 2 4 4 Artifact . | . . . . . . . . . . . . . . . Weapon 82 | 2 1 1 14 16 4 8 6 . 6 6 1 2 . 15 Energy Gun 11 | . . . 1 3 2 . . . 4 . . 1 . . Energy Cannon 12 | . . . . . . 7 4 . 1 . . . . . Ballistic Gun 27 | 2 1 1 6 9 . . . . . 4 . 1 . 3 Ballistic Cannon . | . . . . . . . . . . . . . . . Launcher 17 | . . . 3 2 1 . . . 1 2 1 . . 7 Special Weapon 6 | . . . 4 . . . . . . . . . . 2 Impact Weapon . | . . . . . . . . . . . . . . . Slashing Weapon 6 | . . . . 2 1 1 2 . . . . . . . Piercing Weapon . | . . . . . . . . . . . . . . . Special Melee Weapon 3 | . . . . . . . . . . . . . . 3 Unidentified Prototypes 1 | . . . . . . . . . . 1 . . . . Parts Lost 121 | . 1 . 1 6 4 10 6 . 9 25 6 3 9 41 Power 13 | . 1 . . . . 1 1 . . 3 . . 2 5 Propulsion 28 | . . . . . 1 5 3 . 3 6 1 . . 9 Utility 57 | . . . . 3 2 2 1 . 4 14 4 3 6 18 Weapon 23 | . . . 1 3 1 2 1 . 2 2 1 . 1 9 Highest Loss Streak 18 | . 1 . 1 2 2 2 3 . 4 6 6 2 5 18 To Critical Strikes 4 | . . . . . . . . . 1 . 1 . 1 1 Average Slot Usage (%) 95 | . 99 100 88 97 99 99 99 100 93 98 98 90 94 82 Engine 5 | . 6 11 13 6 7 6 5 . . . . . . . Core 1 | . 7 2 . 1 . . . . . . . . . 2 Reactor 1 | . . . . . . . 1 7 4 4 5 5 4 5 Treads 23 | . 28 28 28 26 22 22 22 23 15 22 22 23 23 18 Device 8 | . . . . 13 7 7 6 7 8 12 6 9 12 17 Storage 8 | . 14 14 4 9 7 7 7 7 5 11 11 11 11 8 Processor 2 | . . . . . 7 7 7 7 5 2 . . . . Hackware 6 | . 13 14 1 4 13 15 15 . . . . . . 1 Protection 15 | . . . 12 16 16 14 14 29 28 22 32 21 21 8 Energy Gun 4 | . . . 2 4 14 1 . . 7 8 . 1 4 3 Energy Cannon 3 | . . . . . . 13 14 15 8 2 . . . . Ballistic Gun 9 | . 28 28 19 12 . . . . . 4 11 10 11 8 Naked Turns . | . . . . . . . . . . . . . . . Heaviest Build 168 | 11 29 94 102 111 111 117 126 138 155 168 154 161 157 161 Greatest Support 125 | 40 40 40 40 69 67 84 84 60 115 115 103 111 113 125 Greatest Overweight (x) 7 | . . 2 2 2 1 2 2 2 7 1 1 1 1 1 Average Overweight (x) . | . . 1 . 1 1 1 1 2 2 1 1 1 . . Largest Inventory Capacity 25 | 8 15 25 25 25 25 25 25 25 25 25 25 25 25 25 Average Capacity 22 | 6 11 22 10 25 25 25 25 25 25 25 25 25 25 23 Most Carried 25 | 6 13 23 25 25 25 25 25 25 25 25 23 25 25 25 Average Carried 21 | 4 9 19 10 22 24 24 24 24 23 23 19 22 24 19 Final Capacity 25 | 8 15 25 5 25 25 25 25 25 25 25 25 25 25 5 Final Carried 25 | 6 13 23 5 25 22 25 25 25 24 23 18 25 22 5 Scrap Engine Consumption 41 | . . . . . . . . . . . . . . 41 Constructs Created 6 | . . . . . . . . . . . . . . 6 Constructs Modified 5 | . . . . . . . . . . . . . . 5 Class Distribution -------------------- 34% | Mutant 23% | Hacker-Mutant 22% | Scavenger-Tank 8% | Tank 6% | Scavenger-Mutant Dominant Class ---------------- Mutant | -10/Materials Mutant | -10/Mines Mutant | -10/Subcaves Mutant | -8/Materials Hacker-Mutant | -7/Factory Hacker-Mutant | -7/Storage Hacker-Mutant | -7/Garrison Mutant | -7/Recycling Tank | -5/Factory Scavenger-Tank | -5/Extension Scavenger-Tank | -5/Cetus Scavenger-Tank | -5/Archives Scavenger-Tank | -5/Hub_04(d) Scavenger-Tank | -4/Factory Resources | -11 -10 -10 -10 -8 -7 -7 -7 -7 -5 -5 -5 -5 -5 -4 ----------- Run | Yrd Mat Min Sub Mat Fac Sto Gar Rec Fac Ext Cet Arc Hub Fac Matter Collected 6849 | 226 342 203 292 1558 244 313 269 37 400 956 153 281 412 1163 Remotely . | . . . . . . . . . . . . . . . Salvage Created 13888 | . 292 55 226 1581 1164 1681 1099 . 1585 2004 314 370 1175 2342 Parts 620 | . 25 2 11 85 46 75 48 . 66 72 11 22 57 100 Haulers Intercepted 16 | . . . . 5 3 5 . . 2 . . . . 1 Recyclers Shooed 5 | . . . . . . 1 . . . 1 . . . 3 Parts Field Recycled . | . . . . . . . . . . . . . . . Retrieved Matter . | . . . . . . . . . . . . . . . Parts Self-Destructed 1 | . . . 1 . . . . . . . . . . . Prevented . | . . . . . . . . . . . . . . . Kills | -11 -10 -10 -10 -8 -7 -7 -7 -7 -5 -5 -5 -5 -5 -4 ------- Run | Yrd Mat Min Sub Mat Fac Sto Gar Rec Fac Ext Cet Arc Hub Fac Combat Hostiles Destroyed 237 | . 8 1 6 32 23 28 23 . 26 29 4 4 17 36 Guns 122 | . 8 1 3 24 20 4 . . 8 22 . 4 17 11 Cannons 63 | . . . . . . 20 21 . 10 5 . . . 7 AOE 33 | . . . 3 8 . . . . 4 . 3 . . 15 Classes Destroyed 19 | . 4 . 1 6 1 1 . . 1 3 . . 1 1 Worker 10 | . 1 . . 2 . . . . 1 . . . 1 5 Builder 12 | . . . . . . 1 . . . 1 . . 2 8 Tunneler 1 | . . . . . . . . . . . . . . 1 Hauler 16 | . . . . 5 3 5 . . 2 . . . . 1 Recycler 5 | . . . . 1 . . . . . 2 . . 1 1 Operator 3 | . 1 . . . 1 . . . . . . . . 1 Watcher 2 | . . . . . . . . . . 1 . . . 1 Swarmer 47 | . 3 . 3 9 6 3 5 . 4 5 . . 4 5 Cutter 2 | . . . . . . . . . 2 . . . . . Saboteur 2 | . . . . . . . . . . 1 . . . 1 Grunt 85 | . 5 1 2 12 10 11 13 . 6 10 . . 4 11 Brawler 8 | . . . . 1 . 1 . . 1 1 . . . 4 Duelist 9 | . . . . 2 1 . . . 1 3 . . . 2 Sentry 38 | . . . . 7 . 7 4 . 1 8 . 4 4 3 Specialist 2 | . . . . . . . . . . . . . 2 . Hunter 21 | . . . . 1 3 4 . . 7 . . . 2 4 Programmer 16 | . . . . . 3 2 1 . 4 . . . . 6 Behemoth 2 | . . . . . . . . . . 1 . . 1 . Cetus Guard 4 | . . . . . . . . . . . 4 . . . Subdweller 3 | . . . 3 . . . . . . . . . . . Best Kill Streak 13 | . 3 1 3 7 6 6 5 . 6 4 4 1 6 13 Combat Bots Only 7 | . 2 1 3 6 6 5 5 . 6 4 4 1 5 7 Max Kills in Single Turn 5 | . 1 1 1 2 1 2 1 . 3 2 1 1 2 5 Gunslinging . | . . . . . . . . . . . . . . . Exploded 3 | . . . 1 2 . . . . 2 . 1 . . 3 Melee . | . . . . . . . . . . . . . . . Uniques/NPCs Destroyed . | . . . . . . . . . . . . . . . Combat | -11 -10 -10 -10 -8 -7 -7 -7 -7 -5 -5 -5 -5 -5 -4 -------- Run | Yrd Mat Min Sub Mat Fac Sto Gar Rec Fac Ext Cet Arc Hub Fac Hostile Shots Fired 2063 | . 50 . 44 163 145 347 195 . 148 322 46 38 122 443 Missed 653 | . 14 . 16 39 44 126 53 . 43 87 16 10 36 169 Damage Taken 25062 | . 441 56 668 1898 1652 2105 1650 . 2480 4843 749 763 1899 5858 Core 2335 | . 71 30 100 67 139 179 117 . 18 277 23 57 90 1167 Absorbed by Shields 224 | . . . . . . . 48 . . 176 . . . . Redirected to Shielding 78 | . . . . . . . . . . 78 . . . . Ignored by Resistances 520 | . . . . . 51 133 152 . . 154 30 . . . Regen/Repaired (Parts) 561 | . . . . 358 187 . . . . . . . . 16 Core Remaining (%) 59 | 100 . . 19 87 . . . 37 . . . . 53 . Volleys Fired 824 | . 37 2 56 120 81 95 79 . 67 104 12 23 39 109 Largest 4 | . 2 2 2 2 2 2 2 . 3 3 3 2 3 4 Hottest 270 | . 40 45 100 122 122 122 120 . 241 245 157 63 159 270 Shots Fired 1719 | . 74 4 68 211 162 189 137 . 174 282 22 41 107 248 Gun 1149 | . 74 4 27 205 162 32 . . 87 230 17 41 107 163 Cannon 476 | . . . . . . 157 137 . 83 50 . . . 49 Launcher 58 | . . . 11 6 . . . . 4 2 5 . . 30 Special 36 | . . . 30 . . . . . . . . . . 6 Kinetic 594 | . 74 4 21 181 . . . . . 84 13 41 72 104 Thermal 1035 | . . . 36 24 162 189 137 . 170 196 4 . 35 82 Explosive 42 | . . . 11 6 . . . . . 1 . . . 24 Electromagnetic 42 | . . . . . . . . . 4 1 5 . . 32 Robot Hit Streak 23 | . 15 3 6 14 23 13 20 . 17 15 10 9 21 9 Robot Miss Streak 9 | . 9 1 3 6 2 5 4 . 2 4 2 2 4 4 Penetration Max 2 | . . . . . . . . . . 2 1 1 1 1 Secondary Targets 11 | . 1 . 1 . 2 2 . . . 3 . . 2 . Max Gunslinging Chain 1 | . 1 . 1 . 1 1 . . . 1 . . 1 . Shots Hit Robots 1143 | . 39 3 21 153 133 124 76 . 116 205 16 30 71 156 Core Hits 557 | . 16 2 12 74 49 56 33 . 54 81 13 12 41 114 Critical Kills 12 | . . . . 1 . 2 1 . 1 3 . 2 1 1 Critical Parts Destroyed 10 | . . . . 1 . . . . . 3 . 1 2 3 Critical Strikes 56 | . . . . 4 12 4 1 . 6 14 1 3 5 6 Burn 31 | . . . . 2 12 2 . . 5 8 . . . 2 Meltdown 5 | . . . . . . 2 1 . 1 1 . . . . Destroy 20 | . . . . 2 . . . . . 5 1 3 5 4 Melee Attacks 17 | . . . . 2 3 2 3 . . . . . . 7 Impact . | . . . . . . . . . . . . . . . Slashing 10 | . . . . 2 3 2 3 . . . . . . . Piercing . | . . . . . . . . . . . . . . . Sneak Attacks 7 | . . . . . . . . . . . . . . 7 Combat Hostiles . | . . . . . . . . . . . . . . . Follow-up Attacks . | . . . . . . . . . . . . . . . Damage Inflicted 33736 | . 488 39 843 3022 2440 3393 2183 . 3256 5904 889 861 2210 8208 Guns 18557 | . 488 39 260 2425 2440 413 . . 1153 4677 501 861 2210 3090 Cannons 8328 | . . . . . . 2870 2183 . 1609 998 . . . 668 Explosions 6749 | . . . 559 597 . 110 . . 437 211 388 . . 4447 Melee . | . . . . . . . . . . . . . . . Ramming 78 | . . . . . . . . . 57 18 . . . 3 Kinetic 9499 | . 488 39 197 2133 . . . . . 1990 385 861 1351 2055 Thermal 18282 | . . . 87 292 2440 3283 2183 . 2853 3757 116 . 859 2412 Explosive 3585 | . . . 559 597 . 110 . . . 21 . . . 2298 Electromagnetic 2292 | . . . . . . . . . 346 118 388 . . 1440 Impact . | . . . . . . . . . . . . . . . Slashing . | . . . . . . . . . . . . . . . Piercing . | . . . . . . . . . . . . . . . Highest Corruption 30 | . . . . . 5 8 10 10 4 11 10 10 10 30 Average Corruption 7 | . . . . . 2 5 8 10 3 6 10 10 10 15 Corruption Purged 2 | . . . . . . . . . . 2 . . . . Corruption Blocked . | . . . . . . . . . . . . . . . Effects 380 | . . . . . 21 57 45 24 43 77 14 14 35 50 Message Errors 97 | . . . . . 4 17 12 3 12 17 8 2 11 11 Matter Fused 86 | . . . . . 6 14 9 6 12 17 1 3 9 9 Heat Flow Errors 38 | . . . . . 2 8 6 7 2 5 . 1 3 4 Energy Discharges 44 | . . . . . 4 8 6 3 4 9 . 1 2 7 Parts Rejected 9 | . . . . . 1 1 1 . 1 4 . . . 1 Parts Fused 2 | . . . . . . . . . . 2 . . . . Data Loss (minor) 43 | . . . . . . 3 8 1 8 10 3 3 3 4 Data Loss (major) 16 | . . . . . 3 2 . 2 . 4 . . 1 4 Misfires 12 | . . . . . . 2 1 . 1 4 1 . . 3 Alerts 8 | . . . . . 1 . 1 . 2 1 . 1 . 2 Misdirections 8 | . . . . . . . . 2 . . . . 2 4 Weapon Failures 17 | . . . . . . 2 1 . 1 4 1 3 4 1 Overload Shots 32 | . . . . . . 1 12 . 11 8 . . . . Overflow Damage 480 | . . . 87 . . 27 81 . 50 8 . . . 227 Projectiles 150 | . . . . . . 27 81 . 35 7 . . . . Explosions 330 | . . . 87 . . . . . 15 1 . . . 227 Melee . | . . . . . . . . . . . . . . . Knockbacks 2 | . . . . . . . . . 2 . . . . . Impact 2 | . . . . . . . . . 2 . . . . . Kinetic . | . . . . . . . . . . . . . . . Secondary . | . . . . . . . . . . . . . . . Self-Inflicted Damage 250 | . . . 79 . . . . . 22 . . . . 149 Shots 9 | . . . 3 . . . . . 1 . . . . 5 Rammed 6 | . . . . . . . . . 4 1 . . . 1 Targets Rammed 7 | . . . . . . . . . 4 2 . . . 1 Kicked . | . . . . . . . . . . . . . . . Crushed 1 | . . . . . . . . . . 1 . . . . Highest Temperature 347 | . 9 6 271 132 250 246 247 244 322 330 3 157 178 347 Average Temperature 76 | . 2 4 60 37 74 88 45 95 90 87 3 115 57 115 Received Heat Transfer 5135 | . 144 . 342 765 309 555 690 . 108 1116 117 126 228 635 Effects 3 | . . . . . . . . . 2 . . . . 1 Energy Bleed 3 | . . . . . . . . . 2 . . . . 1 Siege Activations . | . . . . . . . . . . . . . . . Robots Corrupted 4 | . . . . . . . . . . . 1 . . 3 Combat Hostiles 4 | . . . . . . . . . . . 1 . . 3 Parts Fried 7 | . . . . . . . . . 2 . 5 . . . Impact Corruptions . | . . . . . . . . . . . . . . . Robots Melted 15 | . . . . . 3 4 2 . 4 2 . . . . Combat Hostiles 15 | . . . . . 3 4 2 . 4 2 . . . . Parts Melted 81 | . . . . . 19 15 8 . 18 16 . . 3 2 Heat Transferred 28976 | . . . 198 777 5957 4921 2923 . 4814 5639 148 . 1110 2489 Parts Sabotaged 2 | . . . . . . . . . . . . . . 2 Parts Stolen . | . . . . . . . . . . . . . . . Parts Stripped . | . . . . . . . . . . . . . . . Power Chain Reactions 3 | . . . . . . . . . 2 . 1 . . . Alert | -11 -10 -10 -10 -8 -7 -7 -7 -7 -5 -5 -5 -5 -5 -4 ------- Run | Yrd Mat Min Sub Mat Fac Sto Gar Rec Fac Ext Cet Arc Hub Fac Peak Influence 1037 | . 165 38 . 623 208 314 1020 510 627 783 438 334 571 1037 Initial 459 | . . 38 . 36 81 72 163 459 355 302 438 172 116 254 Average 308 | . 65 8 . 386 81 159 630 448 349 502 426 294 312 456 Maximum Alert Level 3 | . . . . 2 1 1 3 2 2 3 2 1 2 3 Low Security (%) 39 | 100 100 100 . 16 97 73 7 . 8 . . 13 26 13 Level 1 23 | . . . . 27 2 26 22 28 66 12 7 86 52 30 Level 2 30 | . . . . 55 . . 21 71 25 79 92 . 20 35 Level 3 6 | . . . . . . . 48 . . 8 . . . 21 Level 4 . | . . . . . . . . . . . . . . . Level 5 . | . . . . . . . . . . . . . . . High Security . | . . . . . . . . . . . . . . . Max Security . | . . . . . . . . . . . . . . . Squads Dispatched 63 | . 4 1 . 5 9 8 . . 11 5 . . 5 15 Investigation 14 | . 3 1 . 2 3 2 . . 2 . . . . 1 Extermination 11 | . . . . . 4 2 . . 2 . . . . 3 Reinforcement 22 | . 1 . . 1 2 4 . . 6 . . . 5 3 Assault 9 | . . . . . . . . . . 5 . . . 4 Garrison 7 | . . . . 2 . . . . 1 . . . . 4 Intercept . | . . . . . . . . . . . . . . . Searches Triggered . | . . . . . . . . . . . . . . . Construction Impeded 4 | . . . . . 1 . . . . . . . 1 2 Haulers Reinforced 4 | . . . . . . 2 . . 1 . . . 1 . Active Scanning Responses . | . . . . . . . . . . . . . . . Cargo Convoy Interrupts 1 | . . . . . . . . . 1 . . . . . Stealth | -11 -10 -10 -10 -8 -7 -7 -7 -7 -5 -5 -5 -5 -5 -4 --------- Run | Yrd Mat Min Sub Mat Fac Sto Gar Rec Fac Ext Cet Arc Hub Fac Distress Signals 20 | . 4 . . 1 3 2 . . 1 3 1 . 2 3 Communications Jammed . | . . . . . . . . . . . . . . . Distress Signals . | . . . . . . . . . . . . . . . Times Spotted 441 | . 20 1 13 61 42 36 31 . 32 77 5 7 28 88 Peak Tracking Total 25 | . 5 1 3 4 5 5 7 . 5 7 5 1 6 25 Tactical Retreats 34 | . 1 . . 1 2 1 6 . 3 10 . . 1 9 Traps | -11 -10 -10 -10 -8 -7 -7 -7 -7 -5 -5 -5 -5 -5 -4 ------- Run | Yrd Mat Min Sub Mat Fac Sto Gar Rec Fac Ext Cet Arc Hub Fac Traps Triggered 20 | . 1 1 1 4 1 1 4 . 1 6 . . . . Indirectly . | . . . . . . . . . . . . . . . Trap Hack Attempts . | . . . . . . . . . . . . . . . Triggered . | . . . . . . . . . . . . . . . Disarmed . | . . . . . . . . . . . . . . . Reprogrammed . | . . . . . . . . . . . . . . . Reused . | . . . . . . . . . . . . . . . Traps Extracted . | . . . . . . . . . . . . . . . Installed 3 | . . . 2 . . . . . 1 . . . . . Triggered 1 | . . . . . . . . . . 1 . . . . Most Traps Carried 4 | . . 4 4 1 1 1 1 1 1 . . . . . Machines | -11 -10 -10 -10 -8 -7 -7 -7 -7 -5 -5 -5 -5 -5 -4 ---------- Run | Yrd Mat Min Sub Mat Fac Sto Gar Rec Fac Ext Cet Arc Hub Fac Machines Disabled 43 | . . . . 1 . 4 2 . 5 8 . 3 2 18 Max in Single Turn 11 | . . . . 1 . 2 1 . 1 2 . 1 1 11 Garrison Access 3 | . . . . 1 . . . . 1 . . . 1 . Garrison Relay 2 | . . . . . . . 2 . . . . . . . Energy Cycler 1 | . . . . . . . . . . 1 . . . . Machines Repaired . | . . . . . . . . . . . . . . . Machines Dismantled . | . . . . . . . . . . . . . . . Machines Sabotaged . | . . . . . . . . . . . . . . . Overloaded Fab Kills . | . . . . . . . . . . . . . . . Hacking | -11 -10 -10 -10 -8 -7 -7 -7 -7 -5 -5 -5 -5 -5 -4 --------- Run | Yrd Mat Min Sub Mat Fac Sto Gar Rec Fac Ext Cet Arc Hub Fac Machines Accessed 82 | . 10 2 1 14 12 14 2 6 8 1 3 . 7 2 Terminals 50 | . 8 . . 8 6 11 2 3 3 . 3 . 6 . Fabricators 3 | . . . . . 2 . . . 1 . . . . . Repair Stations 6 | . . . . 2 1 . . . 1 1 . . . 1 Recycling Units 12 | . 2 . . 1 3 2 . 3 1 . . . . . Scanalyzers 3 | . . . . 2 . . . . 1 . . . . . Garrison Access 5 | . . . . 1 . 1 . . 1 . . . 1 1 Total Hacks 204 | . 27 2 4 45 34 30 5 12 19 1 8 . 14 3 Successful 97 | . 12 2 4 23 19 13 2 6 9 . 2 . 4 1 Failed 107 | . 15 . . 22 15 17 3 6 10 1 6 . 10 2 Catastrophic 15 | . 1 . . 7 . 3 . 1 1 . 1 . 1 . Database Lockouts . | . . . . . . . . . . . . . . . Manual 93 | . 21 . . 18 19 15 . 6 7 . . . 6 1 Terminals 130 | . 22 . . 27 17 24 5 9 5 . 8 . 13 . Fabricators 8 | . . . . . 7 . . . 1 . . . . . Repair Stations 18 | . . . . 9 3 . . . 3 1 . . . 2 Recycling Units 29 | . 5 . . 5 7 5 . 3 4 . . . . . Scanalyzers 7 | . . . . 2 . . . . 5 . . . . . Garrison Access 6 | . . . . 2 . 1 . . 1 . . . 1 1 Terminal Hacks 48 | . 7 2 4 10 6 9 2 3 1 . 2 . 2 . Record 6 | . . . 4 . . . . . . . 2 . . . Robot Analysis 3 | . 2 . . . . 1 . . . . . . . . Prototype ID Bank 10 | . 2 . . 3 2 1 . 1 . . . . 1 . Open Door 7 | . . 2 . . . 4 . . 1 . . . . . Branch Access Points 3 | . 1 . . 1 1 . . . . . . . . . Emergency Access Points 2 | . . . . . . . 1 1 . . . . . . Terminal Index 2 | . . . . 1 . . . . . . . . 1 . Scanalyzer Index 1 | . . . . . . . . 1 . . . . . . Alert Level 5 | . 1 . . 2 1 1 . . . . . . . . Unreport Threat 6 | . . . . 3 1 2 . . . . . . . . Locate Traps 1 | . . . . . 1 . . . . . . . . . Hauler Manifests 1 | . 1 . . . . . . . . . . . . . Garrison Registry 1 | . . . . . . . 1 . . . . . . . Fabricator Hacks 1 | . . . . . . . . . 1 . . . . . Network Status 1 | . . . . . . . . . 1 . . . . . Repair Station Hacks 11 | . . . . 8 2 . . . 1 . . . . . Scan Component 6 | . . . . 4 1 . . . 1 . . . . . Repair 5 | . . . . 4 1 . . . . . . . . . Recycling Unit Hacks . | . . . . . . . . . . . . . . . Scanalyzer 3 | . . . . 1 . . . . 2 . . . . . Insert Component 3 | . . . . 1 . . . . 2 . . . . . Garrison Access Hacks 3 | . . . . . . 1 . . 1 . . . 1 . Unlock Access 1 | . . . . . . 1 . . . . . . . . Seal Access 2 | . . . . . . . . . 1 . . . 1 . Unauthorized Hacks 31 | . 5 . . 4 11 3 . 3 3 . . . 1 1 Terminals 5 | . 1 . . 1 2 . . . . . . . 1 . Track 1 | . . . . . 1 . . . . . . . . . Botnet 4 | . 1 . . 1 1 . . . . . . . 1 . Fabricators 4 | . . . . . 4 . . . . . . . . . Report 1 | . . . . . 1 . . . . . . . . . Fabnet 2 | . . . . . 2 . . . . . . . . . Haulers 1 | . . . . . 1 . . . . . . . . . Repair Stations . | . . . . . . . . . . . . . . . Recycling Units 20 | . 4 . . 2 5 3 . 3 3 . . . . . Reject 6 | . 1 . . 1 2 1 . . 1 . . . . . Recyclers 5 | . 1 . . 1 1 1 . . 1 . . . . . Mask 2 | . . . . . 1 . . . 1 . . . . . Tunnel 7 | . 2 . . . 1 1 . 3 . . . . . . Scanalyzers . | . . . . . . . . . . . . . . . Garrison Access 2 | . . . . 1 . . . . . . . . . 1 Jam 1 | . . . . 1 . . . . . . . . . . Eject 1 | . . . . . . . . . . . . . . 1 Data Cores Recovered 2 | . 1 . . . 1 . . . . . . . . . Used . | . . . . . . . . . . . . . . . Hacking Detections 65 | . 9 . . 13 10 11 2 3 6 1 3 . 6 1 Full Trace Events 7 | . 1 . . 1 1 1 . 1 2 . . . . . Feedback Events . | . . . . . . . . . . . . . . . Feedback Blocked . | . . . . . . . . . . . . . . . Robot Schematics Acquired . | . . . . . . . . . . . . . . . Robots Built . | . . . . . . . . . . . . . . . Authchips . | . . . . . . . . . . . . . . . Time . | . . . . . . . . . . . . . . . Total Robot Build Rating . | . . . . . . . . . . . . . . . Part Schematics Acquired . | . . . . . . . . . . . . . . . Parts Built . | . . . . . . . . . . . . . . . Authchips . | . . . . . . . . . . . . . . . Time . | . . . . . . . . . . . . . . . Total Part Build Rating . | . . . . . . . . . . . . . . . Parts Repaired 5 | . . . . 4 1 . . . . . . . . . Time 147 | . . . . 128 19 . . . . . . . . . Parts Recycled . | . . . . . . . . . . . . . . . Recycled Matter . | . . . . . . . . . . . . . . . Retrieved Matter . | . . . . . . . . . . . . . . . Retrieved Components . | . . . . . . . . . . . . . . . Parts Scanalyzed . | . . . . . . . . . . . . . . . Part Schematics Acquired . | . . . . . . . . . . . . . . . Parts Damaged . | . . . . . . . . . . . . . . . Bothacking | -11 -10 -10 -10 -8 -7 -7 -7 -7 -5 -5 -5 -5 -5 -4 ------------ Run | Yrd Mat Min Sub Mat Fac Sto Gar Rec Fac Ext Cet Arc Hub Fac Used RIF Installer 1 | . . . . . . . 1 . . . . . . . Robots Hacked 8 | . . . . . . . . . . 1 . . . 7 Non-combat 7 | . . . . . . . . . . . . . . 7 Combat 1 | . . . . . . . . . . 1 . . . . Robot Hacks Applied 13 | . . . . . . . . . . . . . . 13 parse_system 4 | . . . . . . . . . . . . . . 4 no_distress 3 | . . . . . . . . . . . . . . 3 find_chute 1 | . . . . . . . . . . . . . . 1 ignore_repairs 1 | . . . . . . . . . . . . . . 1 find_fabricator 1 | . . . . . . . . . . . . . . 1 find_dsf 1 | . . . . . . . . . . . . . . 1 find_recycling 1 | . . . . . . . . . . . . . . 1 find_station 1 | . . . . . . . . . . . . . . 1 Relay Couplers Released 17 | . . . . . . . 11 . . . . . . 6 Ejected 3 | . . . . . . . . . . . . . . 3 Machine Destruction 7 | . . . . . . . 7 . . . . . . . Programmers 7 | . . . . . . . 4 . . . . . . 3 Attached 6 | . . . . . . . . . . . . . . 6 Fabnet Peak Effective % 2 | . . . . . . . . . 2 2 2 2 2 . Autooverrided 1 | . . . . . . . . . . 1 . . . . Robots Rewired 21 | . . . . . . . . . . 21 . . . . Allies Hacked . | . . . . . . . . . . . . . . . Hacks Repelled . | . . . . . . . . . . . . . . . Allies | -11 -10 -10 -10 -8 -7 -7 -7 -7 -5 -5 -5 -5 -5 -4 -------- Run | Yrd Mat Min Sub Mat Fac Sto Gar Rec Fac Ext Cet Arc Hub Fac Total Allies 39 | . . 3 . . . . . . 3 33 . . . . Largest Group 6 | . . 3 3 . . . . . 3 6 3 . . . Highest-Rated Group 294 | . . 40 40 . . . . . 93 294 70 . . . Highest-Rated Ally 159 | . . 16 16 . . . . . 31 159 25 . . . Total Orders 8 | . . . . . . . . . 6 . . . 2 . EXPLORE 8 | . . . . . . . . . 6 . . . 2 . Ally Attacks 244 | . . . 39 . . . . . 17 187 1 . . . Total Damage 4868 | . . . 425 . . . . . 336 4071 36 . . . Kills 37 | . . . 4 . . . . . 3 30 . . . . Allies Corrupted . | . . . . . . . . . . . . . . . Allies Melted . | . . . . . . . . . . . . . . . Intel | -11 -10 -10 -10 -8 -7 -7 -7 -7 -5 -5 -5 -5 -5 -4 ------- Run | Yrd Mat Min Sub Mat Fac Sto Gar Rec Fac Ext Cet Arc Hub Fac Robot Analysis Total 3 | . 2 . . . . 1 . . . . . . . . Derelict Logs Recovered 1 | . . 1 . . . . . . . . . . . . Drone Launches 8 | . . . . . . . . . 6 . . . 2 . Drone Recoveries 5 | . . . . . . . . . 4 . . . 1 . Exploration | -11 -10 -10 -10 -8 -7 -7 -7 -7 -5 -5 -5 -5 -5 -4 ------------- Run | Yrd Mat Min Sub Mat Fac Sto Gar Rec Fac Ext Cet Arc Hub Fac Turns Passed 23133 | 71 1061 2005 1956 3621 2564 1873 1417 558 2085 2597 346 307 710 1962 Spaces Moved 8006 | 39 553 681 832 1200 970 597 434 174 527 718 127 88 227 839 Core 261 | 5 . . . . . . . . . . . . . 256 Treads 7680 | 34 553 681 832 1200 970 597 434 174 462 718 127 88 227 583 Legs 65 | . . . . . . . . . 65 . . . . . Wheels . | . . . . . . . . . . . . . . . Hover . | . . . . . . . . . . . . . . . Flight . | . . . . . . . . . . . . . . . Fastest Speed 50 | 50 160 160 160 230 225 225 240 320 242 240 242 242 162 50 Average Speed 230 | 145 160 249 192 238 225 236 258 320 330 241 242 242 240 182 Slowest Speed 720 | 160 160 325 345 360 230 312 320 320 720 243 242 242 242 243 Overloaded Moves . | . . . . . . . . . . . . . . . Propulsion Burnouts . | . . . . . . . . . . . . . . . Robots Hopped . | . . . . . . . . . . . . . . . Cave-ins Triggered . | . . . . . . . . . . . . . . . Exploration Rate (%) 59 | 4 90 99 57 84 31 91 58 58 44 79 60 80 34 23 Regions Visited 14 Branch Regions 8 Pre-discovered Areas 8 | . 2 1 . . 1 1 . 3 . . . . . . Known Exits Taken 4 | . 1 1 . . 1 1 . . . . . . . . Unknown Exits Taken 9 | 1 . . 1 1 . . . 1 1 1 1 1 1 . Scrap Searched 5 | . . 1 4 . . . . . . . . . . . Spaces Dug 41 | . . . 13 2 3 4 8 . 5 1 . . 5 . Terrain Destroyed 421 | . . . 60 32 3 63 8 . 19 58 22 13 44 99 Melee 7 | . . . . 2 3 2 . . . . . . . . Projectile 186 | . . . 3 . . 39 8 . 10 43 2 13 44 24 AOE 228 | . . . 57 30 . 22 . . 9 15 20 . . 75 Terrain Rammed . | . . . . . . . . . . . . . . . Walls Destroyed . | . . . . . . . . . . . . . . . Machines Disabled . | . . . . . . . . . . . . . . . Actions | -11 -10 -10 -10 -8 -7 -7 -7 -7 -5 -5 -5 -5 -5 -4 --------- Run | Yrd Mat Min Sub Mat Fac Sto Gar Rec Fac Ext Cet Arc Hub Fac Total 11143 | 50 659 990 1065 1764 1184 875 603 178 726 1360 147 141 309 1092 Wait 1315 | . 42 277 108 308 86 113 29 . 81 175 . 4 28 64 Move 7991 | 38 552 680 831 1199 969 596 432 173 526 717 126 87 226 839 Hop . | . . . . . . . . . . . . . . . Pick Up 202 | 6 13 16 16 45 11 21 18 1 10 25 . 5 3 12 Fast Attach 90 | 6 2 2 3 21 2 6 3 . 13 10 1 7 2 12 Attach 119 | . 2 . 4 7 7 10 9 2 11 30 6 . 4 27 Detach 40 | . 1 1 2 6 1 3 1 2 2 8 1 4 . 8 Swap 110 | . 2 2 17 19 11 9 8 . 5 19 1 4 2 11 Drop 161 | . 8 10 23 37 13 20 17 . 6 14 . 7 4 2 Fire 824 | . 37 2 56 120 81 95 79 . 67 104 12 23 39 109 Melee 17 | . . . . 2 3 2 3 . . . . . . 7 Ram 2 | . . . . . . . . . . . . . 1 1 Kick . | . . . . . . . . . . . . . . . Crush 6 | . . . . . . . . . 4 2 . . . . Escape Stasis 20 | . . . . . . . 4 . . 16 . . . . Rewire 240 | . . . . . . . . . . 240 . . . . Trap 3 | . . . 2 . . . . . 1 . . . . . Miscellaneous 3 | . . . 3 . . . . . . . . . . . Route ------- -11/Scrapyard -10/Materials (discovered 5 exits: [*Mat x3] / *Min x2) -10/Mines (discovered 3 exits: [*Mat x2] / *Sub) -10/Subcaves (discovered 2 exits: *Mat x2) -8/Materials (discovered 2 exits: *Fac x2) -7/Factory (discovered 5 exits: [*Fac] / *Sto x2 / Low x2) -7/Storage (discovered 3 exits: [*Fac] / *Rec / Gar) -7/Garrison (discovered 3 exits: *Rec x3) -7/Recycling -5/Factory (discovered 4 exits: *Fac / [*Upp] / *Ext x2) -5/Extension (discovered 2 exits: *Fac / *Cet) -5/Cetus -5/Archives (discovered 3 exits: *Fac / *Hub x2) -5/Hub_04(d) (discovered 2 exits: *Fac x2) -4/Factory History --------- Turn | Location | Event 16 | -11/Scrapyard | Discovered new exit (range 14) 72 | -11/Scrapyard | Entered Materials 88 | -10/Materials | Discovered new exit (range 15) 269 | -10/Materials | Discovered new exit (range 5) 307 | -10/Materials | Build established: Mutant 457 | -10/Materials | Discovered new exit (range 16) 552 | -10/Materials | Identified exit to Mines 803 | -10/Materials | Discovered new exit (range 15) 1133 | -10/Materials | Entered Mines 1134 | -10/Mines | Learned location of Storage (-7) 1141 | -10/Mines | Met a Derelict bent on vengeance 1170 | -10/Mines | Met a Derelict shopkeep closing up shop 1492 | -10/Mines | Met a Derelict who couldn't figure out how to use a Trap Extractor 1660 | -10/Mines | Discovered new exit (range 12) 1732 | -10/Mines | Found a hidden stash of uninstalled traps 1811 | -10/Mines | Received a Rocket Launcher from a helpful Derelict 2300 | -10/Mines | Discovered new exit (range 5) 2309 | -10/Mines | Identified exit to Subcaves 2812 | -10/Mines | Assisted by bots powering up and referring to "LRC-V3" 3138 | -10/Mines | Entered Subcaves 3138 | -10/Subcaves | Accompanied by 3 allies 3324 | -10/Subcaves | Core integrity fell below 50% 3766 | -10/Subcaves | Shifting Twisted Machinery released Piercing Trap 3787 | -10/Subcaves | Shifting Twisted Machinery released Sub. Optics 4295 | -10/Subcaves | Core integrity fell below 20% 4444 | -10/Subcaves | Visited Clippyterm 4627 | -10/Subcaves | Build established: Subdweller-Mutant 4795 | -10/Subcaves | Shifting Twisted Machinery released Sub. Power Source 4797 | -10/Subcaves | Shifting Twisted Machinery released Battle Rifle 4887 | -10/Subcaves | Discovered new exit (range 10) 5071 | -10/Subcaves | Discovered new exit (range 12) 5094 | -10/Subcaves | Entered Materials 5094 | -8/Materials | Evolved 4 slots: Propulsion x1, Utility x3 5115 | -8/Materials | Build established: Mutant 5216 | -8/Materials | Garrison activated, responded to threat 5582 | -8/Materials | Build established: Scavenger-Mutant 5948 | -8/Materials | Repaired Hvy. Assault Rifle 6912 | -8/Materials | Discovered new exit (range 9) 6981 | -8/Materials | Build established: Mutant 7152 | -8/Materials | Discovered new exit (range 3) 7838 | -8/Materials | Repaired Rocket Launcher 7871 | -8/Materials | Repaired Hrd. Light Armor Plating 7910 | -8/Materials | Repaired Imp. Treads 8715 | -8/Materials | Entered Factory 8715 | -7/Factory | Evolved 2 slots: Utility x2 9180 | -7/Factory | Repaired Hrd. Medium Armor Plating 9448 | -7/Factory | Build established: Hacker-Mutant 9860 | -7/Factory | Identified exit to Storage 9860 | -7/Factory | Identified exit to Lower Caves 10641 | -7/Factory | Discovered new exit (range 20) 11279 | -7/Factory | Entered Storage 11920 | -7/Storage | Used back door to open Recycling access 11920 | -7/Storage | Discovered new exit (range 5) 12294 | -7/Storage | Discovered new exit (range 10) 13150 | -7/Storage | Identified exit to Garrison 13152 | -7/Storage | Entered Garrison 13174 | -7/Garrison | Installed Relay Interface Framework 13278 | -7/Garrison | Triggered checkpoint 13354 | -7/Garrison | Garrison Relay disabled 13487 | -7/Garrison | Core integrity fell below 50% 13694 | -7/Garrison | Triggered checkpoint 13770 | -7/Garrison | Lost 3 parts (1p2n) 13879 | -7/Garrison | Discovered new exit (range 68) 13879 | -7/Garrison | Discovered new exit (range 62) 13879 | -7/Garrison | Discovered new exit (range 12) 13940 | -7/Garrison | Triggered checkpoint 13987 | -7/Garrison | System corruption reached 10% 14398 | -7/Garrison | Triggered checkpoint 14414 | -7/Garrison | Garrison Relay disabled 14569 | -7/Garrison | Entered Recycling 14579 | -7/Recycling | Found Scrap Engine 14884 | -7/Recycling | Build established: Mutant 15053 | -7/Recycling | Discovered new exit (range 20) 15127 | -7/Recycling | Entered Factory 15127 | -5/Factory | Evolved 4 slots: Propulsion x1, Utility x2, Weapon x1 15417 | -5/Factory | Build established: Tank 15530 | -5/Factory | Lost 4 parts (2n2u) 15859 | -5/Factory | Discovered new exit (range 67) 15877 | -5/Factory | Discovered new exit (range 88) 15965 | -5/Factory | Cargo convoy interrupted 15996 | -5/Factory | Build established: Scavenger-Tank 16136 | -5/Factory | Allied Derelicts emerged from ambush trap array 16356 | -5/Factory | Discovered new exit (range 58) 16606 | -5/Factory | Garrison activated, responded to threat 16675 | -5/Factory | Build established: Tank 17202 | -5/Factory | Discovered new exit (range 6) 17212 | -5/Factory | Entered Extension 17475 | -5/Extension | Local machine network offline 17512 | -5/Extension | First assault squad dispatched 17556 | -5/Extension | Rescued a captive Derelict 17562 | -5/Extension | Lost 3 parts (1p2u) 17565 | -5/Extension | Rescued a captive Derelict 17774 | -5/Extension | Rescued a captive Derelict 17856 | -5/Extension | Lost 3 allies 18033 | -5/Extension | Build established: Scavenger-Tank 18146 | -5/Extension | Found Imp. Powered Armor 18200 | -5/Extension | Rescued A7 18283 | -5/Extension | Rescued a captive Derelict 18293 | -5/Extension | Rescued a captive Derelict 18459 | -5/Extension | Spotted B-75 Beast 18468 | -5/Extension | Rescued a captive Derelict 18469 | -5/Extension | Rescued a captive Derelict 18481 | -5/Extension | Spotted B-75 Beast 18496 | -5/Extension | Allies destroyed B-75 Beast 18519 | -5/Extension | Extracted ID and sensor layout for unrecognized location from A7's data core 18545 | -5/Extension | Lost 6 allies 18584 | -5/Extension | Lost 5 parts (1n3u1w) 18735 | -5/Extension | Destroyed B-75 Beast 18830 | -5/Extension | System corruption reached 10% 18863 | -5/Extension | Lost 6 parts (1p1n3u1w) 19201 | -5/Extension | Energy Cycler disabled 19206 | -5/Extension | Rescued a captive Derelict 19206 | -5/Extension | Rescued a captive Derelict 19206 | -5/Extension | Rescued a captive Derelict 19310 | -5/Extension | Lost 3 allies 19445 | -5/Extension | Lost 6 allies 19700 | -5/Extension | Lost 4 parts (1p3u) 19721 | -5/Extension | Discovered new exit (range 10) 19723 | -5/Extension | Discovered new exit (range 6) 19809 | -5/Extension | Entered Cetus 19809 | -5/Cetus | Accompanied by 3 allies 19842 | -5/Cetus | Spotted Cetus Guard 19842 | -5/Cetus | Spotted Cetus Guard 19844 | -5/Cetus | Spotted Cetus Guard 19848 | -5/Cetus | Spotted Cetus Guard 19869 | -5/Cetus | Destroyed Cetus Guard 19875 | -5/Cetus | Destroyed Cetus Guard 19876 | -5/Cetus | Destroyed Cetus Guard 19879 | -5/Cetus | Destroyed Cetus Guard 19887 | -5/Cetus | Lost 3 allies 19908 | -5/Cetus | Lost 6 parts (1n4u1w) 20119 | -5/Cetus | Discovered new exit (range 16) 20155 | -5/Cetus | Entered Archives 20304 | -5/Archives | Discovered new exit (range 16) 20319 | -5/Archives | Unable to access archive contents 20345 | -5/Archives | Discovered new exit (range 15) 20396 | -5/Archives | Discovered new exit (range 15) 20462 | -5/Archives | Entered Hub_04(d) 20504 | -5/Hub_04(d) | Spotted B-75 Beast 20515 | -5/Hub_04(d) | Destroyed B-75 Beast 20950 | -5/Hub_04(d) | Lost 3 parts (3u) 20988 | -5/Hub_04(d) | Discovered new exit (range 6) 21026 | -5/Hub_04(d) | Discovered new exit (range 20) 21172 | -5/Hub_04(d) | Entered Factory 21172 | -4/Factory | Evolved 2 slots: Power x1, Weapon x1 21196 | -4/Factory | Lost 5 parts (1p3u1w) 21886 | -4/Factory | Garrison activated, responded to threat 21982 | -4/Factory | Lost 3 parts (1p1n1w) 22172 | -4/Factory | First assault squad dispatched 22341 | -4/Factory | System corruption reached 10% 22352 | -4/Factory | Garrison activated, responded to threat 22379 | -4/Factory | Lost 8 parts (1p3n3u1w) 22402 | -4/Factory | Destroyed 7 combat bots 22753 | -4/Factory | Destroyed 7 combat bots 22839 | -4/Factory | Lost 6 parts (1p1n3u1w) 23032 | -4/Factory | Lost 18 parts (2p3n8u5w) 23053 | -4/Factory | Core integrity fell below 50% 23080 | -4/Factory | System corruption reached 30% 23128 | -4/Factory | Core integrity fell below 20% 23134 | -4/Factory | Destroyed by P-70 Sage with Tesla Rifle Last Messages --------------- 23096_ Relay Coupler [NC] destroyed. 23100_ O-24 Administrator: "IFF HANDSHAKE FAILED. SECURING TERMINAL." 23101_ ZCP:UIBR2Q 9XTLM6PCJ 23102_ ALERT: Hostiles spotted, dispatching reinforcements to Terminal F010. 23106_ C-30 ARC bursts open, deploying its payload. 23106_ G-73 Enforcer unfolds itself. 23106_ B-60 Warrior unfolds itself. 23106_ G-67 Veteran unfolds itself. 23106_ M-36 Artificer unfolds itself. 23108_ Arm. Huge Wheel destroyed. 23108_ Door malfunctions. 23120_ System corrupted: Energy discharge (-22). 23120_ U-05 Engineer lays Concrete. 23120_ Acquired 12 matter. 23121_ U-05 Engineer lays Concrete. 23127_ Knocked back. 23131_ U-05 Engineer lays Concrete. 23131_ Penetrated by Slug. 23131_ Imp. Target Analyzer destroyed. 23131_ Critical hit (Blast). Map ----- +----------------------------------------------------+ | #??????## * T#?????????????? | | #??????## = ""#?????????????? | | #??????# %= ! ""#?????????????? | | #?????# # !=%= ""#?????????????? | | ######### !% #?????????????? | | + ! ! #?????????????? | | ####### ### % #?????????????? | | #?????## # #?????????????? | | #####??????##### % #?????????????? | | ???????????????#### #?????????????? | | ??????????????????# #?????????????? | | ??????????????????# ^ #?????????????? | | ??????????????????#k ##########?????????????? | | ??????????????????# ###############????????? | | ?????????????###??# # ????????? | | ???????????? ?# k # ???????? | | ??????????? # k % # ???????? | | ???????????? # # ??????? | | ???????????????# + ??????? | | ???????????????## # k # ??????? | | ????????????????### ; ??????? | | ??????????????????# ; ??????? | | ?????????????????## % ################???????? | | ?????????????????# #?????????????????????? | | ?????????????????# #?????????????????????? | | ?????????????????# k H @ #?????????????????????? | | ?????????????????# #?????????????????????? | | ?????????????????+ ????????????????????? | | ?????????????????# ###???????????????????? | | ?????????????????# #?????????????????????? | | ?????????????????# k [ #?????????????????????? | | ?????????????????# = k #?????????????????????? | | ?????????????????### ###?????????????????????? | | ??????????????????# ????????????????????????? | | ??????????????????#T ????????????????????????? | | ??????????????????## ????????????????????????? | | ???????????????????#w ????????????????????????? | | ???????????????????# ????????????????????????? | | ???????????????????# ????????????????????????? | | ??????????????????? ????????????????????????? | | ?????????????????????? ?????????????????????????? | | ?????????????????????????????????????????????????? | | ?????????????????????????????????????????????????? | | ?????????????????????????????????????????????????? | | ?????????????????????????????????????????????????? | | ?????????????????????????????????????????????????? | | ?????????????????????????????????????????????????? | | ?????????????????????????????????????????????????? | | ?????????????????????????????????????????????????? | | ?????????????????????????????????????????????????? | +----------------------------------------------------+ Best States ------------- Heat Dissipation 112 Energy Generation 39 Energy Capacity 1025 Matter Stores 300 Matter Capacity 500 Sight Range 20 Terrain Scan Density 10 Base Temperature (-) 200 Armor Coverage 1525 Resistance: TH 15 Resistance: EM 15 Weapon Shielding 66 Evasion (%) 62 Target Analysis 6 Recoil Reduction 4 Offensive Hacking 10 Defensive Hacking 10 Relay Coupler Types 3 Relay Coupler Value 105 Item Schematics ----------------- None Robot Schematics ------------------ None Fabricated ------------ Nothing Alien Tech Used ----------------- None Achievements -------------- None Challenges ------------ None Game ------ Seed ColdAssemblyMultirail Manual? 0 Play Time 03:50:11 Cumulative 314.8 hours Start 2024.05.20 @ 19:31:24 End 2024.05.20 @ 23:26:15 Sessions 1 Manual Loads 0 Difficulty Rogue Special Mode None Game No. 142 Rogue 141 Adventurer 0 Explorer 1 Win Type - Total 18 Types 13/0/5/0/0/0/0/0/0 Lore% 72 Gallery% 78 Achievement% 70 Wizard Run 0 Options --------- Layout 0 ASCII 1 Keyboard 1 Movement Numpad Keybinds 1 Fullscreen 2 Font 24/Terminus Map View 129x80 Zoom Use 0% Tactical HUD 1 Map Filters NONE Filters NONE Steam 1 RUN: c6899ef5-b3b5-4fe6-817c-edf24a57d057